[Event "NOR-chT Codanserien 2017-18"]
[Site "Oslo"]
[Date "2018.01.12"]
[Round "4"]
[White "Moen, Andreas"]
[Black "Gabrielsen, Stig"]
[Result "1/2-1/2"]
[ECO "E21"]
[WhiteElo "2322"]
[BlackElo "2307"]
[Annotator "ChessBase"]
[PlyCount "37"]
[EventDate "2018.??.??"]
[EventType "team-tourn"]
[EventCountry "NOR"]
[SourceTitle "playchess.com"]
[Source "ChessBase"]
[SourceQuality "1"]
[TimeControl "40/5400+30:1800+30"]

1. d4 Nf6 2. c4 e6 3. Nf3 b6 4. Nc3 Bb7 5. Qc2 c5 6. dxc5 Bxc5 7. Bg5 h6 8. Bh4 Be7 9. e3 d6 10. Rd1 a6 11. Be2 Nbd7 12. O-O Qc7 13. Nd2 O-O 14. Nde4 Rfe8 15. Bf3 Nxe4 16. Bxe7 Rxe7 17. Bxe4 Nc5 18. Bxb7 Nxb7 19. Rd4 1/2-1/2

[Event "NOR-chT Codanserien 2017-18"]
[Site "Oslo"]
[Date "2018.01.12"]
[Round "4"]
[White "Guttulsrud, Odd Martin"]
[Black "Brasoy, Aksel"]
[Result "1-0"]
[ECO "B40"]
[WhiteElo "2268"]
[BlackElo "1937"]
[Annotator "ChessBase"]
[PlyCount "187"]
[EventDate "2018.??.??"]
[EventType "team-tourn"]
[EventCountry "NOR"]
[SourceTitle "playchess.com"]
[Source "ChessBase"]
[SourceQuality "1"]
[TimeControl "40/5400+30:1800+30"]

1. e4 {[%emt 0:00:00]} c5 {[%emt 0:00:11]} 2. Nf3 {[%emt 0:00:00]} e6 {[%emt 0:00:09]} 3. d4 {[%emt 0:00:00]} cxd4 {[%emt 0:00:09]} 4. Nxd4 {[%emt 0:00:00]} Nf6 {[%emt 0:00:30]} 5. Bd3 {[%emt 0:00:36]} Nc6 {[%emt 0:00:40]} 6. Nxc6 {[%emt 0:00:34]} bxc6 {[%emt 0:00:30]} 7. O-O {[%emt 0:00:14]} d5 {[%emt 0:02:36]} 8. Nc3 {[%emt 0:03:01]} Be7 {[%emt 0:01:59]} 9. Qf3 {[%emt 0:01:08]} O-O {[%emt 0:05:00]} 10. b3 {[%emt 0:04:40]} Qa5 {[%emt 0:17:30]} 11. Bb2 {[%emt 0:01:48]} Ba6 {[%emt 0:02:24]} 12. Bxa6 {[%emt 0:16:53]} Qxa6 {[%emt 0:00:10]} 13. e5 {[%emt 0:00:59]} Nd7 {[%emt 0:00:43]} 14. Rfe1 {[%emt 0:01:10]} Ba3 {[%emt 0:07:51]} 15. Na4 {[%emt 0:08:07]} Bxb2 {[%emt 0:00:42]} 16. Nxb2 {[%emt 0:00:09]} Qa3 {[%emt 0:03:02]} 17. Nd3 {[%emt 0:01:29]} a5 {[%emt 0:01:47]} 18. Qg4 {[%emt 0:29:41]} Rfb8 {[%emt 0:04:35]} 19. Nf4 {[%emt 0:04:33]} Qe7 {[%emt 0:05:47]} 20. Re3 {[%emt 0:05:13]} a4 {[%emt 0:12:26]} 21. Rae1 {[%emt 0:03:17]} axb3 {[%emt 0:00:44]} 22. axb3 {[%emt 0:00:07]} Rb4 {[%emt 0:04:48]} 23. Rg3 {[%emt 0:00:45]} g6 {[%emt 0:02:09]} 24. h4 {[%emt 0:01:48]} Kh8 {[%emt 0:09:53]} 25. Rh3 {[%emt 0:01:27]} Ra2 {[%emt 0:06:13]} 26. Re2 {[%emt 0:00:42]} c5 {[%emt 0:04:02]} 27. Qg3 {[%emt 0:03:53]} Ra8 {[%emt 0:01:55]} 28. Nd3 {[%emt 0:04:13]} Rb7 {[%emt 0:00:42]} 29. Qe3 {[%emt 0:01:48]} Rc7 {[%emt 0:02:26]} 30. c4 {[%emt 0:01:35]} Rb8 {[%emt 0:01:51]} 31. cxd5 {[%emt 0:01:28]} exd5 {[%emt 0:00:12]} 32. Nf4 {[%emt 0:00:19]} d4 {[%emt 0:01:07]} 33. Qe4 {[%emt 0:00:14]} Rcb7 {[%emt 0:00:31]} 34. Qd5 {[%emt 0:01:51]} Nf8 {[%emt 0:00:22]} 35. e6 {[%emt 0:01:39]} fxe6 {[%emt 0:00:59]} 36. Nxe6 {[%emt 0:00:31]} Nxe6 {[%emt 0:00:35]} 37. Rxe6 {[%emt 0:00:03]} Qg7 {[%emt 0:00:44]} 38. Qxc5 {[%emt 0:00:30]} Rc7 {[%emt 0:00:36]} 39. Rc6 {[%emt 0:01:14]} Rbc8 {[%emt 0:00:52]} 40. Rxc7 {[%emt 0:00:50]} Rxc7 {[%emt 0:30:07]} 41. Qd6 {[%emt 0:31:08]} Rc1+ {[%emt 0:00:00]} 42. Kh2 {[%emt 0:00:00]} Qc7 {[%emt 0:00:00]} 43. Qxc7 {[%emt 0:00:00]} Rxc7 {[%emt 0:00:00]} 44. Rd3 {[%emt 0:00:00]} Rc3 {[%emt 0:00:00]} 45. Rxd4 {[%emt 0:00:00]} Rxb3 {[%emt 0:00:00]} 46. Rd7 {[%emt 0:00:00]} h5 {[%emt 0:00:00]} 47. f3 {[%emt 0:00:00]} Ra3 {[%emt 0:00:00]} 48. Kg3 {[%emt 0:00:00]} Ra2 {[%emt 0:00:00]} 49. Rb7 {[%emt 0:00:00]} Kg8 {[%emt 0:00:00]} 50. Kh2 {[%emt 0:00:00]} Rc2 {[%emt 0:00:00]} 51. Re7 {[%emt 0:00:00]} Ra2 {[%emt 0:00:00]} 52. Kh3 {[%emt 0:00:00]} Ra3 {[%emt 0:00:00]} 53. Kg3 {[%emt 0:00:00]} Ra2 {[%emt 0:00:00]} 54. Rc7 {[%emt 0:00:00]} Rb2 {[%emt 0:00:00]} 55. Rd7 {[%emt 0:00:00]} Ra2 {[%emt 0:00:00]} 56. Re7 {[%emt 0:00:00]} Rb2 {[%emt 0:00:00]} 57. f4 {[%emt 0:00:00]} Rb3+ {[%emt 0:00:00]} 58. Kf2 {[%emt 0:00:00]} Rb2+ {[%emt 0:00:00]} 59. Kf3 {[%emt 0:00:00]} Rb3+ {[%emt 0:00:00]} 60. Re3 {[%emt 0:00:00]} Rb4 {[%emt 0:00:00]} 61. Re5 {[%emt 0:00:00]} Kg7 {[%emt 0:00:00]} 62. Rg5 {[%emt 0:00:00]} Kh6 {[%emt 0:00:00]} 63. Re5 {[%emt 0:02:47]} Kg7 {[%emt 0:00:00]} 64. Re3 {[%emt 0:00:20]} Kf6 {[%emt 0:00:00]} 65. Ra3 {[%emt 0:01:32]} Rc4 {[%emt 0:00:00]} 66. g4 {[%emt 0:00:08]} hxg4+ {[%emt 0:00:00]} 67. Kxg4 {[%emt 0:00:02]} Rc5 {[%emt 0:00:00]} 68. Ra6+ {[%emt 0:00:24]} Kg7 {[%emt 0:00:00]} 69. Re6 {[%emt 0:00:33]} Rc1 {[%emt 0:00:00]} 70. Re3 {[%emt 0:00:08]} Rc5 {[%emt 0:00:00]} 71. Re5 {[%emt 0:00:07]} Rc4 {[%emt 0:01:14]} 72. Kg5 {[%emt 0:01:37]} Rc7 {[%emt 0:01:43]} 73. Rb5 {[%emt 0:00:12]} Ra7 {[%emt 0:00:55]} 74. h5 {[%emt 0:01:44]} gxh5 {[%emt 0:00:12]} 75. Kxh5 {[%emt 0:00:03]} Kf6 {[%emt 0:00:39]} 76. Kg4 {[%emt 0:00:07]} Ra4 {[%emt 0:00:33]} 77. Rb6+ {[%emt 0:00:05]} Kf7 {[%emt 0:00:22]} 78. Kg5 {[%emt 0:00:04]} Ra5+ {[%emt 0:09:27]} 79. f5 {[%emt 0:00:11]} Ra1 {[%emt 0:01:19]} 80. Rb7+ {[%emt 0:00:08]} Kf8 {[%emt 0:00:21]} 81. Kg6 {[%emt 0:00:12]} Rg1+ {[%emt 0:01:19]} 82. Kf6 {[%emt 0:00:13]} Kg8 {[%emt 0:00:20]} 83. Rb8+ {[%emt 0:03:56]} Kh7 {[%emt 0:00:09]} 84. Ke6 {[%emt 0:01:29]} Ra1 {[%emt 0:00:52]} 85. Re8 {[%emt 0:03:42]} Ra6+ {[%emt 0:01:23]} 86. Kf7 {[%emt 0:00:09]} Ra1 {[%emt 0:01:43]} 87. f6 {[%emt 0:00:20]} Kh6 {[%emt 0:00:21]} 88. Rh8+ {[%emt 0:02:43]} Kg5 {[%emt 0:00:06]} 89. Kg7 {[%emt 0:00:47]} Rg1 {[%emt 0:01:17]} 90. f7 {[%emt 0:00:44]} Kf5+ {[%emt 0:00:06]} 91. Kf8 {[%emt 0:00:23]} Ra1 {[%emt 0:00:24]} 92. Rh2 {[%emt 0:00:17]} Ra8+ {[%emt 0:00:33]} 93. Kg7 {[%emt 0:00:08]} Ra7 {[%emt 0:00:11]} 94. Kg8 {[%emt 0:00:11]} 1-0